Workbook

Sheet AD
B2: V(km/h) | D2: cfr
B3: 30 | D3: =0.45*(1-(0.05*((B3)^0.5))) -> 0.3267624246
B4: 50 | D4: =0.45*(1-(0.05*((B4)^0.5))) -> 0.2909009742
B5: 70 | D5: =0.45*(1-(0.05*((B5)^0.5))) -> 0.261751494
B6: 90 | D6: =0.45*(1-(0.05*((B6)^0.5))) -> 0.2365462579 | AC6: 7 | AD6: 8
B7: 120 | D7: =0.45*(1-(0.05*((B7)^0.5))) -> 0.2035248491
A10: Allignement droit
D11: Pente (%)
D12: -0.09 | E12: -0.08 | F12: -0.07 | G12: -0.06 | H12: -0.05 | I12: -0.04 | J12: -0.03 | K12: -0.02 | L12: -0.01 | M12: 0 | N12: 0.01 | O12: 0.02 | P12: 0.03 | Q12: 0.04 | R12: 0.05 | S12: 0.06 | T12: 0.07 | U12: 0.08 | V12: 0.09
A13: vitesse (km/h) | B13: 30 | D13: =$B13/3.6*1.5+((($B13/3.6)^2)*(1/(2*9.81*($D3+D$12)))) -> 27.4494676 | E13: =$B13/3.6*1.5+((($B13/3.6)^2)*(1/(2*9.81*($D3+E$12)))) -> 26.84364328 | F13: =$B13/3.6*1.5+((($B13/3.6)^2)*(1/(2*9.81*($D3+F$12)))) -> 26.28500846 | G13: =$B13/3.6*1.5+((($B13/3.6)^2)*(1/(2*9.81*($D3+G$12)))) -> 25.7682562 | H13: =$B13/3.6*1.5+((($B13/3.6)^2)*(1/(2*9.81*($D3+H$12)))) -> 25.28884661 | I13: =$B13/3.6*1.5+((($B13/3.6)^2)*(1/(2*9.81*($D3+I$12)))) -> 24.84287302 | J13: =$B13/3.6*1.5+((($B13/3.6)^2)*(1/(2*9.81*($D3+J$12)))) -> 24.42695537 | K13: =$B13/3.6*1.5+((($B13/3.6)^2)*(1/(2*9.81*($D3+K$12)))) -> 24.03815432 | L13: =$B13/3.6*1.5+((($B13/3.6)^2)*(1/(2*9.81*($D3+L$12)))) -> 23.6739017 | M13: =$B13/3.6*1.5+((($B13/3.6)^2)*(1/(2*9.81*($D3+M$12)))) -> 23.33194372 | N13: =$B13/3.6*1.5+((($B13/3.6)^2)*(1/(2*9.81*($D3+N$12)))) -> 23.01029431 | O13: =$B13/3.6*1.5+((($B13/3.6)^2)*(1/(2*9.81*($D3+O$12)))) -> 22.70719646 | P13: =$B13/3.6*1.5+((($B13/3.6)^2)*(1/(2*9.81*($D3+P$12)))) -> 22.4210902 | Q13: =$B13/3.6*1.5+((($B13/3.6)^2)*(1/(2*9.81*($D3+Q$12)))) -> 22.15058566 | R13: =$B13/3.6*1.5+((($B13/3.6)^2)*(1/(2*9.81*($D3+R$12)))) -> 21.89444054 | S13: =$B13/3.6*1.5+((($B13/3.6)^2)*(1/(2*9.81*($D3+S$12)))) -> 21.65154102 | T13: =$B13/3.6*1.5+((($B13/3.6)^2)*(1/(2*9.81*($D3+T$12)))) -> 21.42088558 | U13: =$B13/3.6*1.5+((($B13/3.6)^2)*(1/(2*9.81*($D3+U$12)))) -> 21.20157119 | V13: =$B13/3.6*1.5+((($B13/3.6)^2)*(1/(2*9.81*($D3+V$12)))) -> 20.99278146
B14: 50 | E14: =$B14/3.6*1.5+((($B14/3.6)^2)*(1/(2*9.81*($D4+E$12)))) -> 67.45173916 | F14: =$B14/3.6*1.5+((($B14/3.6)^2)*(1/(2*9.81*($D4+F$12)))) -> 65.34136341 | G14: =$B14/3.6*1.5+((($B14/3.6)^2)*(1/(2*9.81*($D4+G$12)))) -> 63.41378254 | H14: =$B14/3.6*1.5+((($B14/3.6)^2)*(1/(2*9.81*($D4+H$12)))) -> 61.64623264 | I14: =$B14/3.6*1.5+((($B14/3.6)^2)*(1/(2*9.81*($D4+I$12)))) -> 60.01957896 | J14: =$B14/3.6*1.5+((($B14/3.6)^2)*(1/(2*9.81*($D4+J$12)))) -> 58.51762039 | K14: =$B14/3.6*1.5+((($B14/3.6)^2)*(1/(2*9.81*($D4+K$12)))) -> 57.12654798 | L14: =$B14/3.6*1.5+((($B14/3.6)^2)*(1/(2*9.81*($D4+L$12)))) -> 55.83451919 | M14: =$B14/3.6*1.5+((($B14/3.6)^2)*(1/(2*9.81*($D4+M$12)))) -> 54.63131985 | N14: =$B14/3.6*1.5+((($B14/3.6)^2)*(1/(2*9.81*($D4+N$12)))) -> 53.50809363 | O14: =$B14/3.6*1.5+((($B14/3.6)^2)*(1/(2*9.81*($D4+O$12)))) -> 52.45712361 | P14: =$B14/3.6*1.5+((($B14/3.6)^2)*(1/(2*9.81*($D4+P$12)))) -> 51.47165479 | Q14: =$B14/3.6*1.5+((($B14/3.6)^2)*(1/(2*9.81*($D4+Q$12)))) -> 50.54574874 | R14: =$B14/3.6*1.5+((($B14/3.6)^2)*(1/(2*9.81*($D4+R$12)))) -> 49.6741638 | S14: =$B14/3.6*1.5+((($B14/3.6)^2)*(1/(2*9.81*($D4+S$12)))) -> 48.85225584 | T14: =$B14/3.6*1.5+((($B14/3.6)^2)*(1/(2*9.81*($D4+T$12)))) -> 48.07589544 | U14: =$B14/3.6*1.5+((($B14/3.6)^2)*(1/(2*9.81*($D4+U$12)))) -> 47.34139853
B15: 70 | F15: =$B15/3.6*1.5+((($B15/3.6)^2)*(1/(2*9.81*($D5+F$12)))) -> 129.6637179 | G15: =$B15/3.6*1.5+((($B15/3.6)^2)*(1/(2*9.81*($D5+G$12)))) -> 124.6824883 | H15: =$B15/3.6*1.5+((($B15/3.6)^2)*(1/(2*9.81*($D5+H$12)))) -> 120.1717375 | I15: =$B15/3.6*1.5+((($B15/3.6)^2)*(1/(2*9.81*($D5+I$12)))) -> 116.0678161 | J15: =$B15/3.6*1.5+((($B15/3.6)^2)*(1/(2*9.81*($D5+J$12)))) -> 112.3180604 | K15: =$B15/3.6*1.5+((($B15/3.6)^2)*(1/(2*9.81*($D5+K$12)))) -> 108.8785204 | L15: =$B15/3.6*1.5+((($B15/3.6)^2)*(1/(2*9.81*($D5+L$12)))) -> 105.7122292 | M15: =$B15/3.6*1.5+((($B15/3.6)^2)*(1/(2*9.81*($D5+M$12)))) -> 102.7878691 | N15: =$B15/3.6*1.5+((($B15/3.6)^2)*(1/(2*9.81*($D5+N$12)))) -> 100.0787321 | O15: =$B15/3.6*1.5+((($B15/3.6)^2)*(1/(2*9.81*($D5+O$12)))) -> 97.56190194 | P15: =$B15/3.6*1.5+((($B15/3.6)^2)*(1/(2*9.81*($D5+P$12)))) -> 95.21760425 | Q15: =$B15/3.6*1.5+((($B15/3.6)^2)*(1/(2*9.81*($D5+Q$12)))) -> 93.02868592 | R15: =$B15/3.6*1.5+((($B15/3.6)^2)*(1/(2*9.81*($D5+R$12)))) -> 90.98019472 | S15: =$B15/3.6*1.5+((($B15/3.6)^2)*(1/(2*9.81*($D5+S$12)))) -> 89.05903727 | T15: =$B15/3.6*1.5+((($B15/3.6)^2)*(1/(2*9.81*($D5+T$12)))) -> 87.25369889
B16: 90 | G16: =$B16/3.6*1.5+((($B16/3.6)^2)*(1/(2*9.81*($D6+G$12)))) -> 217.935712 | H16: =$B16/3.6*1.5+((($B16/3.6)^2)*(1/(2*9.81*($D6+H$12)))) -> 208.2632739 | I16: =$B16/3.6*1.5+((($B16/3.6)^2)*(1/(2*9.81*($D6+I$12)))) -> 199.5750763 | J16: =$B16/3.6*1.5+((($B16/3.6)^2)*(1/(2*9.81*($D6+J$12)))) -> 191.7281621 | K16: =$B16/3.6*1.5+((($B16/3.6)^2)*(1/(2*9.81*($D6+K$12)))) -> 184.6059812 | L16: =$B16/3.6*1.5+((($B16/3.6)^2)*(1/(2*9.81*($D6+L$12)))) -> 178.112562 | M16: =$B16/3.6*1.5+((($B16/3.6)^2)*(1/(2*9.81*($D6+M$12)))) -> 172.1681618 | N16: =$B16/3.6*1.5+((($B16/3.6)^2)*(1/(2*9.81*($D6+N$12)))) -> 166.7059754 | O16: =$B16/3.6*1.5+((($B16/3.6)^2)*(1/(2*9.81*($D6+O$12)))) -> 161.6696137 | P16: =$B16/3.6*1.5+((($B16/3.6)^2)*(1/(2*9.81*($D6+P$12)))) -> 157.0111497 | Q16: =$B16/3.6*1.5+((($B16/3.6)^2)*(1/(2*9.81*($D6+Q$12)))) -> 152.6895888 | R16: =$B16/3.6*1.5+((($B16/3.6)^2)*(1/(2*9.81*($D6+R$12)))) -> 148.6696589 | S16: =$B16/3.6*1.5+((($B16/3.6)^2)*(1/(2*9.81*($D6+S$12)))) -> 144.9208455
B17: 120 | I17: =$B17/3.6*1.5+((($B17/3.6)^2)*(1/(2*9.81*($D7+I$12)))) -> 396.3177334 | J17: =$B17/3.6*1.5+((($B17/3.6)^2)*(1/(2*9.81*($D7+J$12)))) -> 376.3599155 | K17: =$B17/3.6*1.5+((($B17/3.6)^2)*(1/(2*9.81*($D7+K$12)))) -> 358.5770421 | L17: =$B17/3.6*1.5+((($B17/3.6)^2)*(1/(2*9.81*($D7+L$12)))) -> 342.6319558 | M17: =$B17/3.6*1.5+((($B17/3.6)^2)*(1/(2*9.81*($D7+M$12)))) -> 328.2537629 | N17: =$B17/3.6*1.5+((($B17/3.6)^2)*(1/(2*9.81*($D7+N$12)))) -> 315.2223164 | O17: =$B17/3.6*1.5+((($B17/3.6)^2)*(1/(2*9.81*($D7+O$12)))) -> 303.3568654 | P17: =$B17/3.6*1.5+((($B17/3.6)^2)*(1/(2*9.81*($D7+P$12)))) -> 292.5076188 | Q17: =$B17/3.6*1.5+((($B17/3.6)^2)*(1/(2*9.81*($D7+Q$12)))) -> 282.54939

Sheet AC
B2: V(km/h) | D2: cfr
B3: 30 | D3: =0.45*(1-(0.05*((B3)^0.5))) -> 0.3267624246
B4: 50 | D4: =0.45*(1-(0.05*((B4)^0.5))) -> 0.2909009742
B5: 70 | D5: =0.45*(1-(0.05*((B5)^0.5))) -> 0.261751494
B6: 90 | D6: =0.45*(1-(0.05*((B6)^0.5))) -> 0.2365462579 | AA6: 7 | AB6: 8
B7: 120 | D7: =0.45*(1-(0.05*((B7)^0.5))) -> 0.2035248491
A10: Courbe
D11: Pente (%)
D12: -0.09 | E12: -0.08 | F12: -0.07 | G12: -0.06 | H12: -0.05 | I12: -0.04 | J12: -0.03 | K12: -0.02 | L12: -0.01 | M12: 0 | N12: 0.01 | O12: 0.02 | P12: 0.03 | Q12: 0.04 | R12: 0.05 | S12: 0.06 | T12: 0.07 | U12: 0.08 | V12: 0.09
A13: vitesse (km/h) | B13: 30 | D13: =$B13/3.6*1.5+(((($B13/3.6)^2)*(1/(2*9.81*($D3+D$12))))*1.3) -> 31.93430787 | E13: =$B13/3.6*1.5+(((($B13/3.6)^2)*(1/(2*9.81*($D3+E$12))))*1.3) -> 31.14673627 | F13: =$B13/3.6*1.5+(((($B13/3.6)^2)*(1/(2*9.81*($D3+F$12))))*1.3) -> 30.42051099 | G13: =$B13/3.6*1.5+(((($B13/3.6)^2)*(1/(2*9.81*($D3+G$12))))*1.3) -> 29.74873306 | H13: =$B13/3.6*1.5+(((($B13/3.6)^2)*(1/(2*9.81*($D3+H$12))))*1.3) -> 29.12550059 | I13: =$B13/3.6*1.5+(((($B13/3.6)^2)*(1/(2*9.81*($D3+I$12))))*1.3) -> 28.54573493 | J13: =$B13/3.6*1.5+(((($B13/3.6)^2)*(1/(2*9.81*($D3+J$12))))*1.3) -> 28.00504198 | K13: =$B13/3.6*1.5+(((($B13/3.6)^2)*(1/(2*9.81*($D3+K$12))))*1.3) -> 27.49960061 | L13: =$B13/3.6*1.5+(((($B13/3.6)^2)*(1/(2*9.81*($D3+L$12))))*1.3) -> 27.02607221 | M13: =($B13/3.6*1.5)+(((($B13/3.6)^2)*(1/(2*9.81*($D3+M$12))))*1.3) -> 26.58152684 | N13: =$B13/3.6*1.5+(((($B13/3.6)^2)*(1/(2*9.81*($D3+N$12))))*1.3) -> 26.1633826 | O13: =$B13/3.6*1.5+(((($B13/3.6)^2)*(1/(2*9.81*($D3+O$12))))*1.3) -> 25.7693554 | P13: =$B13/3.6*1.5+(((($B13/3.6)^2)*(1/(2*9.81*($D3+P$12))))*1.3) -> 25.39741726 | Q13: =$B13/3.6*1.5+(((($B13/3.6)^2)*(1/(2*9.81*($D3+Q$12))))*1.3) -> 25.04576135 | R13: =$B13/3.6*1.5+(((($B13/3.6)^2)*(1/(2*9.81*($D3+R$12))))*1.3) -> 24.7127727 | S13: =$B13/3.6*1.5+(((($B13/3.6)^2)*(1/(2*9.81*($D3+S$12))))*1.3) -> 24.39700333 | T13: =$B13/3.6*1.5+(((($B13/3.6)^2)*(1/(2*9.81*($D3+T$12))))*1.3) -> 24.09715126 | U13: =$B13/3.6*1.5+(((($B13/3.6)^2)*(1/(2*9.81*($D3+U$12))))*1.3) -> 23.81204254 | V13: =$B13/3.6*1.5+(((($B13/3.6)^2)*(1/(2*9.81*($D3+V$12))))*1.3) -> 23.5406159
B14: 50 | E14: =$B14/3.6*1.5+(((($B14/3.6)^2)*(1/(2*9.81*($D4+E$12))))*1.3) -> 81.4372609 | F14: =$B14/3.6*1.5+(((($B14/3.6)^2)*(1/(2*9.81*($D4+F$12))))*1.3) -> 78.69377243 | G14: =$B14/3.6*1.5+(((($B14/3.6)^2)*(1/(2*9.81*($D4+G$12))))*1.3) -> 76.1879173 | H14: =$B14/3.6*1.5+(((($B14/3.6)^2)*(1/(2*9.81*($D4+H$12))))*1.3) -> 73.89010244 | I14: =$B14/3.6*1.5+(((($B14/3.6)^2)*(1/(2*9.81*($D4+I$12))))*1.3) -> 71.77545265 | J14: =$B14/3.6*1.5+(((($B14/3.6)^2)*(1/(2*9.81*($D4+J$12))))*1.3) -> 69.8229065 | K14: =$B14/3.6*1.5+(((($B14/3.6)^2)*(1/(2*9.81*($D4+K$12))))*1.3) -> 68.01451237 | L14: =$B14/3.6*1.5+(((($B14/3.6)^2)*(1/(2*9.81*($D4+L$12))))*1.3) -> 66.33487494 | M14: =($B14/3.6*1.5)+(((($B14/3.6)^2)*(1/(2*9.81*($D4+M$12))))*1.3) -> 64.77071581 | N14: =$B14/3.6*1.5+(((($B14/3.6)^2)*(1/(2*9.81*($D4+N$12))))*1.3) -> 63.31052172 | O14: =$B14/3.6*1.5+(((($B14/3.6)^2)*(1/(2*9.81*($D4+O$12))))*1.3) -> 61.94426069 | P14: =$B14/3.6*1.5+(((($B14/3.6)^2)*(1/(2*9.81*($D4+P$12))))*1.3) -> 60.66315123 | Q14: =$B14/3.6*1.5+(((($B14/3.6)^2)*(1/(2*9.81*($D4+Q$12))))*1.3) -> 59.45947336 | R14: =$B14/3.6*1.5+(((($B14/3.6)^2)*(1/(2*9.81*($D4+R$12))))*1.3) -> 58.32641295 | S14: =$B14/3.6*1.5+(((($B14/3.6)^2)*(1/(2*9.81*($D4+S$12))))*1.3) -> 57.25793259 | T14: =$B14/3.6*1.5+(((($B14/3.6)^2)*(1/(2*9.81*($D4+T$12))))*1.3) -> 56.24866407 | U14: =$B14/3.6*1.5+(((($B14/3.6)^2)*(1/(2*9.81*($D4+U$12))))*1.3) -> 55.29381808
B15: 70 | F15: =$B15/3.6*1.5+(((($B15/3.6)^2)*(1/(2*9.81*($D5+F$12))))*1.3) -> 159.8128333 | G15: =$B15/3.6*1.5+(((($B15/3.6)^2)*(1/(2*9.81*($D5+G$12))))*1.3) -> 153.3372348 | H15: =$B15/3.6*1.5+(((($B15/3.6)^2)*(1/(2*9.81*($D5+H$12))))*1.3) -> 147.4732588 | I15: =$B15/3.6*1.5+(((($B15/3.6)^2)*(1/(2*9.81*($D5+I$12))))*1.3) -> 142.1381609 | J15: =$B15/3.6*1.5+(((($B15/3.6)^2)*(1/(2*9.81*($D5+J$12))))*1.3) -> 137.2634785 | K15: =$B15/3.6*1.5+(((($B15/3.6)^2)*(1/(2*9.81*($D5+K$12))))*1.3) -> 132.7920765 | L15: =$B15/3.6*1.5+(((($B15/3.6)^2)*(1/(2*9.81*($D5+L$12))))*1.3) -> 128.6758979 | M15: =($B15/3.6*1.5)+(((($B15/3.6)^2)*(1/(2*9.81*($D5+M$12))))*1.3) -> 124.8742298 | N15: =$B15/3.6*1.5+(((($B15/3.6)^2)*(1/(2*9.81*($D5+N$12))))*1.3) -> 121.3523517 | O15: =$B15/3.6*1.5+(((($B15/3.6)^2)*(1/(2*9.81*($D5+O$12))))*1.3) -> 118.0804725 | P15: =$B15/3.6*1.5+(((($B15/3.6)^2)*(1/(2*9.81*($D5+P$12))))*1.3) -> 115.0328855 | Q15: =$B15/3.6*1.5+(((($B15/3.6)^2)*(1/(2*9.81*($D5+Q$12))))*1.3) -> 112.1872917 | R15: =$B15/3.6*1.5+(((($B15/3.6)^2)*(1/(2*9.81*($D5+R$12))))*1.3) -> 109.5242531 | S15: =$B15/3.6*1.5+(((($B15/3.6)^2)*(1/(2*9.81*($D5+S$12))))*1.3) -> 107.0267485 | T15: =$B15/3.6*1.5+(((($B15/3.6)^2)*(1/(2*9.81*($D5+T$12))))*1.3) -> 104.6798086
B16: 90 | G16: =$B16/3.6*1.5+(((($B16/3.6)^2)*(1/(2*9.81*($D6+G$12))))*1.3) -> 272.0664255 | H16: =$B16/3.6*1.5+(((($B16/3.6)^2)*(1/(2*9.81*($D6+H$12))))*1.3) -> 259.4922561 | I16: =$B16/3.6*1.5+(((($B16/3.6)^2)*(1/(2*9.81*($D6+I$12))))*1.3) -> 248.1975991 | J16: =$B16/3.6*1.5+(((($B16/3.6)^2)*(1/(2*9.81*($D6+J$12))))*1.3) -> 237.9966107 | K16: =$B16/3.6*1.5+(((($B16/3.6)^2)*(1/(2*9.81*($D6+K$12))))*1.3) -> 228.7377755 | L16: =$B16/3.6*1.5+(((($B16/3.6)^2)*(1/(2*9.81*($D6+L$12))))*1.3) -> 220.2963306 | M16: =($B16/3.6*1.5)+(((($B16/3.6)^2)*(1/(2*9.81*($D6+M$12))))*1.3) -> 212.5686104 | N16: =$B16/3.6*1.5+(((($B16/3.6)^2)*(1/(2*9.81*($D6+N$12))))*1.3) -> 205.4677681 | O16: =$B16/3.6*1.5+(((($B16/3.6)^2)*(1/(2*9.81*($D6+O$12))))*1.3) -> 198.9204978 | P16: =$B16/3.6*1.5+(((($B16/3.6)^2)*(1/(2*9.81*($D6+P$12))))*1.3) -> 192.8644947 | Q16: =$B16/3.6*1.5+(((($B16/3.6)^2)*(1/(2*9.81*($D6+Q$12))))*1.3) -> 187.2464655 | R16: =$B16/3.6*1.5+(((($B16/3.6)^2)*(1/(2*9.81*($D6+R$12))))*1.3) -> 182.0205565 | S16: =$B16/3.6*1.5+(((($B16/3.6)^2)*(1/(2*9.81*($D6+S$12))))*1.3) -> 177.1470991
B17: 120 | I17: =$B17/3.6*1.5+(((($B17/3.6)^2)*(1/(2*9.81*($D7+I$12))))*1.3) -> 500.2130534 | J17: =$B17/3.6*1.5+(((($B17/3.6)^2)*(1/(2*9.81*($D7+J$12))))*1.3) -> 474.2678902 | K17: =$B17/3.6*1.5+(((($B17/3.6)^2)*(1/(2*9.81*($D7+K$12))))*1.3) -> 451.1501548 | L17: =$B17/3.6*1.5+(((($B17/3.6)^2)*(1/(2*9.81*($D7+L$12))))*1.3) -> 430.4215426 | M17: =($B17/3.6*1.5)+(((($B17/3.6)^2)*(1/(2*9.81*($D7+M$12))))*1.3) -> 411.7298917 | N17: =$B17/3.6*1.5+(((($B17/3.6)^2)*(1/(2*9.81*($D7+N$12))))*1.3) -> 394.7890114 | O17: =$B17/3.6*1.5+(((($B17/3.6)^2)*(1/(2*9.81*($D7+O$12))))*1.3) -> 379.363925 | P17: =$B17/3.6*1.5+(((($B17/3.6)^2)*(1/(2*9.81*($D7+P$12))))*1.3) -> 365.2599045 | Q17: =$B17/3.6*1.5+(((($B17/3.6)^2)*(1/(2*9.81*($D7+Q$12))))*1.3) -> 352.3142069
K19: =30*1.5/3.6 -> 12.5
